bitfinex/quotes_SOLUSD_20250722
["timestamp","ask_amount","ask_price","bid_price","bid_amount"]
[1753199929293,2.58518283,201.48,201.47,37.38]
[1753199930202,2.58518283,201.48,201.47,0.71]
[1753199930406,2.58518283,201.48,201.47,38.11]
[1753199930922,2.58518283,201.48,201.47,0.71]
[1753199931099,4.96351814,201.47,201.44,0.71]
[1753199931299,4.96351814,201.47,201.45,37.36]
[1753199931502,4.96351814,201.47,201.46,0.71]
[1753199931901,4.96351814,201.47,201.43,14.98039369]
[1753199931902,4.96351814,201.47,201.43,0.71]
[1753199932110,4.96351814,201.47,201.44,38.05]
[1753199932325,4.96351814,201.47,201.45,0.71]
[1753199932493,4.96351814,201.47,201.42,15.01039369]
[1753199932699,4.96351814,201.47,201.46,0.71]
[1753199933095,2.58518283,201.48,201.46,38.03]
[1753199933315,2.58518283,201.48,201.47,0.71]
[1753199933516,4.96228662,201.52,201.47,0.71]
[1753199934005,19.94268031,201.52,201.46,37.32]
[1753199934197,4.96228662,201.52,201.46,0.71]
[1753199934397,4.96228662,201.52,201.47,37.32]
[1753199934589,4.96228662,201.52,201.48,0.71]
[1753199934994,4.96228662,201.52,201.49,37.3]
[1753199935197,19.94268031,201.52,201.45,0.71]
[1753199935401,19.94268031,201.52,201.49,37.3]
[1753199935807,14.98039369,201.5,201.47,0.03]
[1753199936010,26.0,201.49,201.47,1e-08]
[1753199936311,14.98039369,201.48,201.47,1e-08]
[1753199937419,4.961548,201.55,201.47,38.09000001]
[1753199937723,4.961548,201.55,201.48,15.69039369]
[1753199938017,14.98039369,201.53,201.48,0.71]
[1753199938219,19.94194169,201.55,201.49,43.085]
[1753199938410,14.98039369,201.54,201.5,37.42]
[1753199938612,14.98039369,201.51,201.47,1e-08]
[1753199938922,14.98039369,201.49,201.47,1e-08]
[1753199939297,4.96327178,201.48,201.47,1e-08]
[1753199940515,19.94366547,201.48,201.47,1e-08]
[1753199940903,4.96327178,201.48,201.47,1e-08]
[1753199941097,4.96327178,201.48,201.47,0.71000001]
[1753199941324,14.98039369,201.52,201.47,0.71000001]
[1753199941617,17.365418,201.55,201.47,20.6453937]
[1753199941618,14.98039369,201.54,201.47,20.6453937]
[1753199941821,14.98039369,201.52,201.47,38.43000001]
[1753199941997,14.98039369,201.52,201.47,0.71000001]
[1753199942319,14.98039369,201.52,201.47,1e-08]
[1753199942895,0.54,201.54,201.47,1e-08]
[1753199943095,14.98039369,201.52,201.47,1e-08]
[1753199943327,4.96253287,201.51,201.47,1e-08]
[1753199943993,32.34925875,201.51,201.47,1e-08]
[1753199945398,4.96253287,201.51,201.47,1e-08]
[1753199945599,4.96031746,201.6,201.5,14.98039369]
[1753199945842,4.96031746,201.6,201.57,14.98039369]
[1753199946015,4.96031746,201.6,201.58,0.71]
[1753199946223,4.96031746,201.6,201.56,14.98039369]
[1753199946554,2.3229,201.57,201.52,4.955]
[1753199946712,4.95810402,201.69,201.57,21.73968397]
[1753199947031,4.95810402,201.69,201.64,14.98039369]
[1753199947240,4.95810402,201.69,201.65,14.98039369]
[1753199947409,5.66793924,201.7,201.62,16.78468397]
[1753199947614,4.95793924,201.7,201.68,14.98039369]
[1753199947816,4.95793924,201.7,201.62,0.03]
[1753199948017,5.66793924,201.7,201.65,14.98039369]
[1753199948241,5.66793924,201.7,201.66,14.98039369]
[1753199948408,4.95793924,201.7,201.67,14.98039369]
[1753199948613,4.9571209,201.73,201.69,14.98039369]
[1753199948931,4.9571209,201.73,201.72,14.98039369]
[1753199949127,4.9571209,201.73,201.72,9.90155676]
[1753199949328,4.95662949,201.75,201.72,9.90155676]
[1753199949720,5.01638382,201.76,201.72,9.90155676]
[1753199950113,5.72638382,201.76,201.72,9.90155676]
[1753199950319,5.01638382,201.76,201.72,9.90155676]
[1753199950656,0.06,201.76,201.75,9.90155676]
[1753199951032,0.06,201.81,201.75,9.90155676]
[1753199951216,5.0152317,201.81,201.76,37.68]
[1753199951539,5.0152317,201.81,201.77,47.66155676]
[1753199951718,0.06,201.81,201.77,47.66155676]
[1753199952135,0.06,201.81,201.77,9.90155676]
[1753199952539,0.06,201.81,201.78,9.90155676]
[1753199952724,0.06,201.81,201.79,9.90155676]
[1753199952921,0.06,201.81,201.78,9.90155676]
[1753199953118,0.06,201.81,201.77,47.64155676]
[1753199953337,0.06,201.81,201.79,9.90155676]
[1753199954428,0.06,201.81,201.78,9.90155676]
[1753199955150,0.06,201.81,201.72,6.1132]
[1753199955348,10.61155676,201.8,201.74,9.90155676]
[1753199955518,0.71,201.8,201.75,9.90155676]
[1753199955715,0.71,201.79,201.75,9.90155676]
[1753199955937,0.71,201.79,201.74,9.90155676]
[1753199956146,4.95589255,201.78,201.75,9.90155676]
[1753199956652,4.95589255,201.78,201.73,37.68]
[1753199956950,4.95589255,201.78,201.75,9.90155676]
[1753199957545,4.95589255,201.78,201.74,9.90155676]
[1753199957752,4.95540138,201.8,201.74,9.90155676]
[1753199958228,17.34390484,201.8,201.74,9.90155676]
[1753199958421,27.9054616,201.8,201.75,37.66]
[1753199958620,0.66,201.79,201.75,37.66]
[1753199958816,27.2454616,201.8,201.75,37.66]
[1753199959020,0.66,201.78,201.75,37.66]
[1753199959446,17.34390484,201.8,201.75,37.66]
[1753199959632,4.95589255,201.78,201.75,37.66]
[1753199960521,9.90155676,201.76,201.73,37.54]
[1753199960721,10.56155676,201.76,201.72,37.54]
[1753199960954,9.90155676,201.73,201.65,6.6213]
[1753199961120,10.56155676,201.73,201.68,37.54]
[1753199961327,0.66,201.73,201.68,37.54]
[1753199961854,4.95761241,201.71,201.68,37.54]
[1753199962026,4.95761241,201.71,201.69,9.90155676]
[1753199962345,4.95761241,201.71,201.68,47.44155676]
[1753199962546,4.95761241,201.71,201.69,37.54]
[1753199963220,4.95761241,201.71,201.68,9.90155676]
[1753199963530,4.95761241,201.71,201.69,37.54]
[1753199963914,22.29411974,201.74,201.69,37.54]
[1753199963915,4.9571209,201.73,201.69,37.54]
[1753199964329,5.6171209,201.73,201.69,37.54]
[1753199964944,15.51867766,201.73,201.69,37.54]
[1753199965147,12.39256298,201.74,201.69,37.54]
[1753199965148,0.66,201.8,201.72,9.90155676]
[1753199965325,0.66,201.8,201.66,42.78468397]
[1753199965326,5.61540138,201.8,201.75,9.90155676]
[1753199965527,0.66,201.79,201.75,9.90155676]
[1753199966555,5.61589255,201.78,201.73,37.48]
[1753199966728,5.61589255,201.78,201.73,95.70247567]
[1753199966927,5.61589255,201.78,201.74,37.48]
[1753199967234,0.66,201.77,201.68,85.80091891]
[1753199967419,0.66,201.77,201.66,30.95883336]
[1753199967420,0.66,201.77,201.69,37.44]
[1753199967618,9.90155676,201.76,201.69,47.34155676]
[1753199967822,0.66,201.77,201.71,9.90155676]
[1753199967823,10.56155676,201.77,201.71,9.90155676]
[1753199968255,10.56155676,201.76,201.69,37.44]
[1753199968423,9.90155676,201.75,201.7,37.44]
[1753199968620,5.61687518,201.74,201.7,37.44]
[1753199970050,0.66,201.73,201.7,37.4]
[1753199970745,4.95687518,201.74,201.7,37.4]
[1753199970952,9.90155676,201.77,201.71,9.90155676]
[1753199971250,9.90155676,201.77,201.71,47.30155676]
[1753199971747,10.56155676,201.78,201.71,47.30155676]
[1753199972450,0.66,201.78,201.73,9.90155676]
[1753199972751,10.56155676,201.77,201.7,4.955]
[1753199972963,9.90155676,201.74,201.7,37.38]
[1753199973123,10.56155676,201.74,201.7,37.38]
[1753199973445,0.66,201.74,201.7,37.38]
[1753199973764,4.95638382,201.76,201.7,47.28155676]
[1753199974063,4.95638382,201.76,201.71,9.90155676]
[1753199974221,4.95638382,201.76,201.7,47.28155676]
[1753199974420,0.66,201.75,201.66,93.45883989]
[1753199974647,0.66,201.75,201.69,37.36]
[1753199974831,4.95687518,201.74,201.7,9.90155676]
[1753199975727,4.95687518,201.74,201.71,9.90155676]
[1753199976146,4.95613817,201.77,201.73,9.90155676]
[1753199976350,4.95540138,201.8,201.76,9.90155676]
[1753199976850,0.06,201.81,201.77,37.32]
[1753199977351,0.66,201.8,201.77,37.32]
[1753199977554,0.06,201.81,201.77,37.32]
[1753199977844,0.72,201.81,201.77,37.32]
[1753199978447,0.72,201.81,201.76,52.13655676]
[1753199978958,4.95540138,201.8,201.76,14.85655676]
[1753199979144,4.95540138,201.8,201.77,4.955]
[1753199979351,4.95540138,201.8,201.75,9.90155676]
[1753199979580,5.61540138,201.8,201.76,37.24]
[1753199979858,0.06,201.78,201.76,37.24]
[1753199980050,0.06,201.78,201.76,42.195]
[1753199980558,0.06,201.78,201.76,37.2]
[1753199980752,0.06,201.78,201.75,9.90155676]
[1753199980938,0.06,201.78,201.76,37.2]
[1753199981137,0.06,201.78,201.76,42.155]
[1753199981654,0.06,201.78,201.76,52.05655676]
[1753199981860,0.06,201.78,201.77,9.90155676]
[1753199982360,0.06,201.78,201.77,14.85655676]
[1753199983953,0.06,201.78,201.77,6.3276]
[1753199984148,0.06,201.78,201.77,16.22915676]
[1753199984578,0.06,201.78,201.77,53.36915676]
[1753199984860,0.06,201.83,201.81,46.52468397]
[1753199985038,0.06,201.83,201.82,113.87319883]
[1753199985366,0.06,201.86,201.85,47.73968397]
[1753199985538,0.06,201.86,201.85,84.99968397]
[1753199985731,0.06,201.86,201.85,94.90124073]
[1753199985938,0.06,201.86,201.85,73.16155676]
[1753199986159,0.06,201.86,201.85,35.90155676]
[1753199986462,0.06,201.86,201.85,73.16155676]
[1753199986940,0.06,201.86,201.85,73.12155676]
[1753199987140,0.06,201.86,201.85,83.03073065]
[1753199987638,0.06,201.86,201.85,78.07573065]
[1753199988756,0.06,201.86,201.85,78.40502355]
[1753199988950,0.06,201.86,201.85,0.3292929]
[1753199990664,0.73,201.86,201.85,0.3292929]
[1753199991069,5.68392846,201.86,201.85,0.3292929]
[1753199991288,0.73,201.86,201.85,0.3292929]
[1753199991562,0.06,201.86,201.85,47.39084966]
[1753199991974,0.06,201.86,201.85,52.34502355]
[1753199992768,0.06,201.86,201.85,140.84502355]
[1753199992941,0.06,201.86,201.85,52.34502355]
[1753199993464,0.06,201.86,201.85,52.84044093]
[1753199993665,0.06,201.86,201.85,52.34502355]
[1753199994072,0.06,201.86,201.85,157.795832]
[1753199994371,0.06,201.86,201.85,163.88691462]
[1753199994673,0.06,201.86,201.85,142.10723065]
[1753199995249,0.06,201.86,201.85,147.06223065]
[1753199996269,10.63155676,201.86,201.8,9.90155676]
[1753199996464,0.73,201.86,201.81,9.90155676]
[1753199996663,0.73,201.86,201.82,37.2]
[1753199997648,5.49117211,201.85,201.8,9.90155676]
[1753199997969,0.67,201.84,201.82,4.955]
[1753199998169,0.67,201.83,201.82,4.955]
[1753199998754,0.67,201.83,201.81,0.32935817]
[1753199998963,0.67,201.83,201.81,37.48935817]
[1753199999371,0.67,201.83,201.81,0.32935817]
[1753199999554,0.67,201.83,201.81,37.46935817]
[1753200000479,0.06,201.86,201.81,0.32935817]
[1753200000781,9.96155676,201.86,201.81,0.32935817]
[1753200000953,0.67,201.85,201.81,0.32935817]
[1753200001456,10.57155676,201.84,201.81,0.32935817]
[1753200001664,0.67,201.83,201.81,0.32935817]
[1753200003276,0.67,201.83,201.81,0.35935817]
[1753200003495,9.96155676,201.86,201.81,0.35935817]
[1753200003778,5.62417389,201.85,201.81,0.35935817]
[1753200004480,0.67,201.84,201.81,0.35935817]
[1753200005796,5.01395714,201.86,201.81,10.26091493]
[1753200005988,0.73,201.86,201.81,10.26091493]
[1753200006174,0.73,201.86,201.82,9.90155676]
[1753200006564,0.73,201.86,201.83,46.90155676]
[1753200006901,0.06,201.86,201.83,9.90155676]
[1753200007063,9.90155676,201.84,201.82,88.5]
[1753200007261,10.57155676,201.83,201.82,88.5]
[1753200007476,0.67,201.83,201.82,88.5]
[1753200007864,10.57155676,201.83,201.82,88.5]
[1753200008167,15.52622157,201.83,201.82,88.5]
[1753200008366,15.52622157,201.83,201.81,0.35935817]
[1753200008367,5.62466481,201.83,201.81,0.35935817]
[1753200008596,10.57155676,201.82,201.81,0.35935817]
[1753200009387,10.57155676,201.82,201.81,1e-08]
[1753200009684,0.67,201.82,201.81,1e-08]
[1753200009891,10.57155676,201.82,201.81,1e-08]
[1753200010094,15.52646707,201.82,201.81,1e-08]
[1753200010790,17.03956707,201.82,201.81,1e-08]
[1753200010963,26.0,201.79,201.77,1e-08]
[1753200011167,9.90155676,201.8,201.77,1e-08]
[1753200011382,0.67,201.78,201.77,1e-08]
[1753200011578,10.57155676,201.78,201.77,1e-08]
[1753200011768,10.57155676,201.78,201.74,0.03]
[1753200011981,14.85818625,201.75,201.74,0.03]
[1753200012486,15.52818625,201.75,201.74,0.03]
[1753200012994,5.62662949,201.75,201.74,0.03]
[1753200014201,5.62589255,201.78,201.74,0.03]
[1753200014567,0.67,201.77,201.74,0.03]
[1753200015073,0.67,201.76,201.74,0.03]
[1753200015482,4.95589255,201.78,201.74,0.03]
[1753200015768,5.62568838,201.79,201.75,9.90155676]
[1753200015981,0.67,201.78,201.74,0.03]
[1753200016180,4.95613817,201.77,201.74,0.03]
[1753200016581,0.67,201.76,201.74,0.03]
[1753200016983,0.67,201.75,201.74,0.03]
[1753200018091,4.95613817,201.77,201.74,0.03]
[1753200018297,4.95589255,201.78,201.74,0.03]
[1753200018592,5.66589255,201.78,201.75,0.32283208]
[1753200018794,5.66589255,201.78,201.75,0.25932216]
[1753200019896,4.95589255,201.78,201.75,0.25932216]
[1753200020078,0.71,201.81,201.77,9.90155676]
[1753200020285,0.71,201.8,201.77,9.90155676]
[1753200020499,0.71,201.8,201.78,0.32278408]
[1753200020698,0.71,201.79,201.78,0.26945957]
[1753200020996,10.61155676,201.79,201.78,0.26945957]
[1753200021186,9.90155676,201.78,201.74,0.03]
[1753200021376,10.61155676,201.78,201.74,0.03]
[1753200021572,43.3421861,201.82,201.74,0.03]
[1753200021573,10.61155676,201.77,201.74,0.03]
[1753200021775,0.71,201.77,201.75,0.25348303]
[1753200021968,0.71,201.76,201.75,0.25348303]
[1753200022393,5.66638382,201.76,201.75,0.25348303]
[1753200022976,0.71,201.82,201.75,88.75348303]
[1753200023176,46.76155676,201.81,201.75,88.75348303]
[1753200023499,9.90155676,201.78,201.76,0.25347047]
[1753200023792,0.71,201.77,201.76,0.25347047]
[1753200024380,15.56769493,201.77,201.76,0.25347047]
[1753200024571,5.66613817,201.77,201.76,0.25347047]
[1753200024972,15.56769493,201.77,201.76,0.25347047]
[1753200025178,15.56769493,201.77,201.74,0.03]
[1753200025494,35.90155676,201.75,201.72,0.03]
[1753200025697,9.90155676,201.73,201.72,0.03]
[1753200026080,47.45155676,201.73,201.72,0.03]
[1753200027191,52.40867766,201.73,201.72,0.03]
[1753200028300,5.6671209,201.73,201.72,0.03]
[1753200028505,52.38867766,201.73,201.72,0.03]
[1753200028998,62.29023442,201.73,201.71,0.03]
[1753200029202,14.86015248,201.67,201.66,0.03]
[1753200029384,51.68015248,201.67,201.66,0.03]
[1753200029594,52.39015248,201.67,201.66,0.03]
[1753200030302,15.57015248,201.67,201.66,0.03]
[1753200030501,16.78468397,201.66,201.56,9.90155676]
[1753200030702,9.90155676,201.62,201.55,9.90155676]
[1753200031001,9.90155676,201.62,201.57,9.90155676]
[1753200031002,36.8,201.61,201.57,9.90155676]
[1753200031204,0.71,201.6,201.56,9.90155676]
[1753200031401,0.71,201.6,201.54,93.46178578]
[1753200031606,0.71,201.6,201.56,9.90155676]
[1753200032128,0.71,201.6,201.53,94.5115]
[1753200032129,36.8,201.59,201.53,94.5115]
[1753200032308,36.8,201.59,201.52,88.5]
[1753200032309,10.61155676,201.58,201.52,88.5]
[1753200032601,0.71,201.57,201.51,9.90155676]
[1753200032994,14.86198886,201.6,201.53,9.90155676]
[1753200033202,37.51,201.59,201.53,9.90155676]
[1753200033504,10.61155676,201.58,201.52,9.90155676]
[1753200033702,10.61155676,201.58,201.48,11.52212053]
[1753200033703,0.71,201.58,201.53,9.90155676]
[1753200033905,0.71,201.57,201.54,9.90155676]
[1753200034506,36.8,201.56,201.54,9.90155676]
[1753200035995,36.8,201.56,201.48,16.46041803]
[1753200035996,36.8,201.56,201.53,9.90155676]
[1753200036203,36.76,201.55,201.48,6.25886127]
[1753200036506,36.76,201.55,201.51,9.90155676]
[1753200037010,36.76,201.55,201.48,6.25886127]
[1753200037307,0.71,201.6,201.54,9.90155676]
[1753200037499,36.74,201.59,201.55,9.90155676]
[1753200037697,0.71,201.58,201.55,9.90155676]
[1753200038007,0.71,201.57,201.55,9.90155676]
[1753200038201,0.71,201.57,201.54,9.90155676]
[1753200038509,37.47,201.56,201.54,9.90155676]
[1753200039207,37.47,201.56,201.53,9.90155676]
[1753200040113,9.90155676,201.54,201.48,0.24736127]
[1753200040310,26.68624073,201.49,201.44,0.03]
[1753200040607,9.90155676,201.45,201.44,0.03]
[1753200041009,0.71,201.45,201.44,0.03]
[1753200041203,47.37155676,201.45,201.44,0.03]
[1753200041713,26.0,201.42,201.33,9.90155676]
[1753200041893,9.90155676,201.4,201.34,9.90155676]
[1753200042211,37.47,201.39,201.33,9.90155676]
[1753200042412,0.71,201.39,201.33,9.90155676]
[1753200042612,36.76,201.38,201.33,9.90155676]
[1753200042814,0.71,201.37,201.29,4.955]
[1753200043110,46.66155676,201.36,201.3,9.90155676]
[1753200043317,0.71,201.41,201.34,9.90155676]
[1753200043521,0.71,201.47,201.4,9.90155676]
[1753200043817,0.71,201.56,201.47,4.96351814]
[1753200043988,0.71,201.56,201.42,26.0]
[1753200043989,9.90155676,201.52,201.44,4.96425734]
[1753200044189,9.90155676,201.51,201.44,4.96425734]
[1753200044391,9.90155676,201.5,201.44,14.8658141]
[1753200044621,9.90155676,201.5,201.44,9.90155676]
[1753200044815,9.90155676,201.49,201.43,14.86605019]
[1753200045019,0.71,201.5,201.43,9.90155676]
[1753200045315,0.71,201.53,201.47,9.90155676]
[1753200045492,0.71,201.53,201.48,9.90155676]
[1753200045693,9.90155676,201.55,201.4,43.3781385]
[1753200045694,36.82,201.55,201.5,9.90155676]
[1753200045913,0.71,201.55,201.5,9.90155676]
[1753200046212,9.90155676,201.58,201.52,9.90155676]
[1753200046420,36.82,201.57,201.52,9.90155676]
[1753200046914,37.53,201.57,201.52,9.90155676]
[1753200047920,0.72,201.56,201.5,9.90155676]
[1753200048310,36.8,201.55,201.5,9.90155676]
[1753200048818,36.8,201.55,201.51,9.90155676]
[1753200049019,36.8,201.55,201.5,9.90155676]
[1753200049528,37.52,201.55,201.51,9.90155676]
[1753200049704,0.72,201.54,201.49,9.90155676]
[1753200050219,37.5,201.54,201.49,9.90155676]
[1753200050392,9.90155676,201.52,201.45,9.90155676]
[1753200051017,36.78,201.54,201.5,9.90155676]
[1753200051227,36.78,201.54,201.47,4.96351814]
[1753200051403,0.72,201.56,201.51,9.90155676]
[1753200051608,0.72,201.56,201.48,0.58]
[1753200051812,36.78,201.56,201.48,0.58]
[1753200052121,36.78,201.56,201.51,9.90155676]
[1753200052414,37.5,201.56,201.52,9.90155676]
[1753200052616,36.78,201.56,201.52,9.90155676]
[1753200052796,0.72,201.56,201.49,4.96302546]
[1753200052999,36.78,201.6,201.55,9.90155676]
[1753200053216,1.43849174,201.65,201.59,9.90155676]
[1753200053415,9.96155676,201.66,201.52,27.5188]
[1753200053416,0.06,201.66,201.64,9.90155676]
[1753200053620,0.06,201.66,201.65,10.48155676]
[1753200054321,0.06,201.66,201.65,9.90155676]
[1753200054722,0.06,201.66,201.65,10.48155676]
[1753200057404,0.06,201.66,201.65,9.90155676]
[1753200058125,0.06,201.66,201.64,9.90155676]
[1753200058805,0.06,201.66,201.63,9.90155676]
[1753200059416,9.96155676,201.66,201.58,0.58]
[1753200059618,10.68155676,201.66,201.6,9.90155676]
[1753200059814,0.78,201.66,201.6,9.90155676]
[1753200060014,10.68155676,201.66,201.59,9.90155676]
[1753200060216,9.90155676,201.65,201.58,9.90155676]
[1753200060528,9.90155676,201.62,201.55,47.24155676]
[1753200060737,9.90155676,201.61,201.54,9.90155676]
[1753200060902,4.96031746,201.6,201.54,9.90155676]
[1753200061103,4.96031746,201.6,201.52,7.0538]
[1753200061320,15.58187422,201.6,201.53,9.90155676]
[1753200061504,5.68031746,201.6,201.54,9.90155676]
[1753200061705,5.68031746,201.6,201.55,9.90155676]
[1753200061925,0.72,201.59,201.52,4.955]
[1753200062109,0.72,201.59,201.54,9.90155676]
[1753200062314,4.96031746,201.6,201.55,9.90155676]
[1753200062621,5.68031746,201.6,201.55,9.90155676]
[1753200062928,9.90155676,201.63,201.55,4.96149215]
[1753200063108,0.06,201.66,201.55,4.96149215]
[1753200063109,0.06,201.66,201.62,9.90155676]
[1753200063307,5.01895793,201.66,201.61,9.90155676]
[1753200063533,9.90155676,201.64,201.56,62.76]
[1753200063718,9.90155676,201.63,201.56,46.66155676]
[1753200063914,9.90155676,201.57,201.5,9.90155676]
[1753200064134,9.90155676,201.56,201.49,16.45825676]
[1753200064310,10.62155676,201.55,201.48,9.90155676]
[1753200064720,9.90155676,201.58,201.51,9.90155676]
[1753200065042,14.86261247,201.57,201.5,9.90155676]
[1753200065329,19.93338869,201.57,201.5,14.97233298]
[1753200065507,14.97233298,201.56,201.49,14.97233298]
[1753200066235,20.65338869,201.57,201.51,14.97233298]
[1753200066612,20.65338869,201.57,201.5,14.97233298]
[1753200066931,15.69233298,201.56,201.49,14.97233298]
[1753200067239,14.97233298,201.55,201.48,14.97233298]
[1753200067447,4.96083449,201.58,201.54,14.97233298]
[1753200067730,4.96060164,201.59,201.55,14.97233298]
[1753200068120,5.68060164,201.59,201.55,14.97233298]
[1753200068310,0.72,201.58,201.53,14.97233298]
[1753200068635,4.96130184,201.56,201.5,14.97233298]
[1753200069113,4.96130184,201.56,201.51,14.97233298]
[1753200069310,5.68130184,201.56,201.51,14.97233298]
[1753200069522,4.9608096,201.58,201.54,14.97233298]
[1753200070041,4.9608096,201.58,201.52,0.58]
[1753200070042,5.6808096,201.58,201.53,14.97233298]
[1753200070210,4.9608096,201.58,201.53,14.97233298]
[1753200070517,0.72,201.57,201.49,0.58]
[1753200070718,4.96130184,201.56,201.52,14.97233298]
[1753200070917,4.96130184,201.56,201.51,14.97233298]
[1753200071127,4.96130184,201.56,201.52,14.97233298]
[1753200071431,5.68130184,201.56,201.51,14.97233298]
[1753200071626,5.68130184,201.56,201.49,89.98]
[1753200071826,5.68130184,201.56,201.51,14.97233298]
[1753200072026,0.06,201.59,201.55,14.97233298]
[1753200072329,0.06,201.59,201.58,14.97233298]
[1753200072510,0.06,201.59,201.58,104.37233298]
[1753200072711,0.06,201.59,201.58,14.97233298]
[1753200072912,0.06,201.59,201.57,14.97233298]
[1753200073134,0.06,201.59,201.58,14.97233298]
[1753200073635,0.06,201.59,201.57,14.97233298]
[1753200074041,0.72,201.58,201.52,26.0]
[1753200074237,0.06,201.59,201.51,31.54249232]
[1753200074413,0.06,201.59,201.54,14.97233298]
[1753200074617,5.02056352,201.59,201.53,14.97233298]
[1753200074924,20.7128965,201.59,201.52,14.97233298]
[1753200075124,18.14197232,201.59,201.52,14.97233298]
[1753200075323,20.7128965,201.59,201.53,14.97233298]
[1753200075515,0.06,201.59,201.57,14.97233298]
[1753200075720,0.06,201.59,201.58,14.97233298]
[1753200076832,0.06,201.59,201.56,14.97233298]
[1753200077022,0.06,201.59,201.57,14.97233298]
[1753200077233,0.06,201.59,201.56,14.97233298]
[1753200077420,0.06,201.59,201.57,14.97233298]
[1753200078255,78.39233298,201.58,201.45,12.45197399]
[1753200078540,0.68,201.57,201.45,12.45197399]
[1753200078840,14.97233298,201.54,201.47,14.97233298]
[1753200079039,15.65233298,201.54,201.47,14.97233298]
[1753200079351,14.97233298,201.55,201.48,14.97233298]
[1753200079517,32.0513,201.58,201.46,36.94]
[1753200079518,14.97233298,201.52,201.46,36.94]
[1753200079920,14.97233298,201.56,201.5,14.97233298]
[1753200080115,4.961548,201.55,201.49,14.97233298]
[1753200080354,4.961548,201.55,201.51,14.97233298]
[1753200080723,14.97233298,201.58,201.51,14.97233298]
[1753200080928,0.06,201.59,201.56,14.97233298]
[1753200081128,0.06,201.59,201.58,14.97233298]
[1753200081660,0.06,201.59,201.56,14.97233298]
[1753200081866,5.02071785,201.59,201.55,57.98843298]
[1753200082028,5.02071785,201.59,201.55,36.96]
[1753200082229,0.74,201.59,201.5,6.6361]
[1753200082455,0.74,201.59,201.51,14.97233298]
[1753200082656,14.97233298,201.58,201.52,14.97233298]
[1753200082958,0.06,201.59,201.54,14.97233298]
[1753200083329,0.74,201.59,201.53,14.97233298]
[1753200083627,14.97233298,201.57,201.5,21.02843298]
[1753200083852,14.97233298,201.53,201.46,0.58]
[1753200084030,14.97233298,201.52,201.45,55.67767399]
[1753200084234,4.96253287,201.51,201.45,70.65000697]
[1753200084438,14.97233298,201.46,201.45,12.45197399]
[1753200084744,15.65233298,201.46,201.45,12.45197399]
[1753200085952,15.65233298,201.46,201.44,0.03]
[1753200086156,20.6163439,201.45,201.44,0.03]
[1753200086834,14.97233298,201.4,201.39,0.03]
[1753200087038,0.68,201.44,201.39,0.03]
[1753200087237,14.97233298,201.4,201.39,0.03]
[1753200087438,15.65233298,201.4,201.39,0.03]
[1753200087842,0.68,201.44,201.39,0.03]
[1753200088243,0.68,201.46,201.39,0.03]
[1753200088452,0.09408771,201.4,201.39,15.00233298]
[1753200089176,0.09408771,201.4,201.39,0.03]
[1753200089333,0.09408771,201.4,201.39,16.07888196]
[1753200089533,0.09408771,201.4,201.39,32.86356593]
[1753200089747,0.09408771,201.4,201.39,16.07888196]
[1753200090150,0.09408771,201.4,201.39,21.0443718]
[1753200090459,0.09408771,201.4,201.39,37.82905577]
[1753200090635,0.09408771,201.4,201.39,22.85672279]
[1753200090842,0.09408771,201.4,201.39,37.82905577]
[1753200093355,0.09408771,201.4,201.39,20.4643718]
[1753200094556,0.09408771,201.4,201.39,21.0443718]
[1753200095078,0.09408771,201.4,201.39,15.00233298]
[1753200096738,0.09408771,201.4,201.39,20.54782282]
[1753200096938,0.09408771,201.4,201.39,52.60233298]
[1753200097662,0.09408771,201.4,201.39,52.02233298]
[1753200097844,0.09408771,201.4,201.39,57.56782282]
[1753200098049,0.09408771,201.4,201.39,100.84905577]
[1753200098566,0.09408771,201.4,201.39,83.4643718]
[1753200098768,0.09408771,201.4,201.39,84.0443718]
[1753200099362,0.68,201.52,201.4,16.78468397]